bitfinex/quotes_ETHUSD_20251010
["timestamp","ask_amount","ask_price","bid_price","bid_amount"]
[1760071192716,0.27595585,4340.9,4340.4,2.30392477]
[1760071192909,0.00200001,4340.9,4340.4,2.30392477]
[1760071193903,0.00200001,4340.9,4340.1,0.2195]
[1760071194256,2.399,4340.8,4340.7,2.30377588]
[1760071194449,2.399,4340.8,4340.7,2.73577588]
[1760071195111,2.399,4340.8,4340.7,2.75881363]
[1760071196048,0.00200001,4340.9,4340.8,2.30372281]
[1760071196622,0.00200001,4340.9,4340.8,2.73572281]
[1760071196825,0.00200001,4340.9,4340.8,2.87316003]
[1760071197038,0.00200001,4340.9,4340.8,3.39085893]
[1760071198462,0.00200001,4340.9,4340.8,3.36782171]
[1760071200747,0.00200001,4340.9,4340.8,3.39085893]
[1760071201147,0.00200001,4340.9,4340.8,3.36782171]
[1760071201348,0.00200001,4340.9,4340.8,2.85012281]
[1760071201760,0.00200001,4340.9,4340.8,2.41812281]
[1760071204111,0.00200001,4340.9,4340.4,0.4479]
[1760071204246,0.4564,4340.8,4340.1,2.30404548]
[1760071204452,4.455,4340.7,4340.2,2.30402892]
[1760071204697,4.94634,4340.7,4340.2,2.30402892]
[1760071206867,4.94634,4340.7,4339.9,0.4479]
[1760071207063,4.94634,4340.7,4340.4,2.30391718]
[1760071207394,4.455,4340.7,4340.4,2.30391718]
[1760071208888,5.921,4340.7,4340.6,2.30382896]
[1760071209088,8.317,4340.7,4340.6,2.30382896]
[1760071209592,8.317,4340.7,4340.5,2.32689363]
[1760071209794,8.317,4340.7,4340.5,2.30385481]
[1760071209991,8.317,4340.7,4340.1,0.2195]
[1760071209992,8.317,4340.7,4340.1,2.3040883]
[1760071210159,8.317,4340.7,4340.4,2.30393071]
[1760071210906,8.317,4340.7,4340.5,2.30387957]
[1760071213101,8.317,4340.7,4340.4,2.30393207]
[1760071214146,8.317,4340.7,4340.5,2.30387972]
[1760071215106,8.317,4340.7,4340.3,0.1144]
[1760071215312,9.27474,4340.7,4340.0,4.3652]
[1760071215514,9.27474,4340.7,4340.1,0.001]
[1760071215886,9.27474,4340.7,4340.1,0.2205]
[1760071216091,9.27474,4340.7,4340.3,2.30396402]
[1760071216412,9.27474,4340.7,4340.1,2.30505786]
[1760071216586,9.16034,4340.7,4340.1,0.001]
[1760071216786,0.1144,4340.4,4340.1,0.001]
[1760071218498,0.4564,4340.3,4340.1,0.001]
[1760071218717,6.506,4340.2,4340.1,0.001]
[1760071219237,6.506,4340.2,4340.1,2.75299437]
[1760071219544,6.506,4340.2,4340.1,2.97249437]
[1760071223049,0.11640001,4340.9,4340.7,2.30375681]
[1760071223364,8.903,4340.8,4340.7,2.30375681]
[1760071225568,8.903,4340.8,4340.7,2.75165681]
[1760071225770,8.903,4340.8,4340.7,2.77469456]
[1760071225968,0.11640001,4340.9,4340.7,2.77469456]
[1760071225969,2.39900001,4340.9,4340.8,2.30372281]
[1760071226173,8.90500001,4340.9,4340.8,2.75162281]
[1760071226554,6.50800001,4340.9,4340.8,2.75162281]
[1760071229233,0.00200001,4340.9,4340.8,5.21163799]
[1760071229377,0.00200001,4340.9,4340.8,5.18860077]
[1760071230156,0.00200001,4340.9,4340.8,4.74070077]
[1760071230487,0.00200001,4340.9,4340.8,4.69692281]
[1760071233592,0.00200001,4340.9,4340.8,4.81132281]
[1760071234288,0.00200001,4340.9,4340.8,19.22775926]
[1760071237564,0.00200001,4340.9,4340.8,20.10670558]
[1760071239600,0.00200001,4340.9,4340.8,20.74030558]
[1760071239801,0.00200001,4340.9,4340.8,22.99207603]
[1760071240002,0.002,4341.4,4341.3,2.30345748]
[1760071240202,0.002,4341.4,4341.3,2.32649205]
[1760071240391,0.002,4341.4,4341.3,2.44089205]
[1760071240599,0.002,4341.4,4341.3,4.81105748]
[1760071240807,0.002,4341.4,4341.3,5.52251706]
[1760071241185,0.002,4341.4,4341.3,5.63656827]
[1760071245400,0.01,4341.9,4341.8,2.30319222]
[1760071245608,0.01,4341.9,4341.8,19.54160691]
[1760071245824,0.01,4341.9,4341.8,20.10617499]
[1760071246029,0.01,4341.9,4341.8,22.34711979]
[1760071250257,1e-08,4341.9,4341.8,22.34711979]
[1760071250419,0.01,4342.9,4342.8,2.30266187]
[1760071250612,0.01,4342.9,4342.8,2.87598848]
[1760071250951,0.01,4342.9,4342.8,2.85296187]
[1760071251252,0.01,4342.9,4342.8,2.87598848]
[1760071251421,0.01,4342.9,4342.8,2.85296187]
[1760071252941,0.01,4342.9,4342.8,2.87598848]
[1760071255441,0.01,4342.9,4342.8,7.83856462]
[1760071255643,0.01,4342.9,4342.8,7.81553801]
[1760071257508,0.01,4342.9,4342.8,8.65634084]
[1760071258444,0.01,4342.9,4342.8,10.57634084]
[1760071259361,0.002,4343.6,4342.8,13.23625511]
[1760071259656,0.002,4343.6,4343.5,7.26486691]
[1760071259824,0.002,4343.6,4343.5,7.37926691]
[1760071260163,0.002,4343.6,4343.5,11.10738836]
[1760071260317,0.002,4344.0,4343.9,2.30207877]
[1760071260516,0.002,4344.0,4343.9,4.24509955]
[1760071260734,0.002,4344.0,4343.9,4.70319955]
[1760071260937,0.002,4344.0,4343.9,4.68017877]
[1760071261219,0.002,4344.0,4343.9,5.54885899]
[1760071262153,0.002,4344.5,4344.4,2.30181382]
[1760071262454,0.002,4344.5,4344.4,4.22181382]
[1760071262654,0.002,4344.5,4344.4,9.64248996]
[1760071263164,2.444,4345.6,4344.8,2.30160191]
[1760071263165,2.42535201,4345.6,4344.8,2.30160191]
[1760071263364,0.96553291,4345.5,4344.6,2.30170298]
[1760071263526,3.2667705,4345.5,4344.6,2.30170298]
[1760071263959,3.2667705,4345.5,4344.4,6.88257614]
[1760071264173,2.30141474,4345.2,4344.2,4.22191855]
[1760071264329,0.4479,4345.1,4344.2,4.22191855]
[1760071264527,2.30160513,4344.8,4343.8,2.30212395]
[1760071264761,7.8089,4344.7,4343.8,2.30212395]
[1760071264962,0.4479,4344.6,4343.3,2.30239679]
[1760071265128,0.4479,4344.5,4343.5,2.30223873]
[1760071265327,2.30181509,4344.4,4343.5,0.69119725]
[1760071265640,3.02474387,4344.3,4343.4,4.96257614]
[1760071266441,3.02474387,4344.3,4343.4,7.26489771]
[1760071266951,0.4479,4344.2,4343.4,2.30232157]
[1760071267148,0.41550179,4344.2,4343.4,2.30232157]
[1760071267361,0.41550179,4344.2,4343.3,4.96257614]
[1760071267670,0.29922928,4344.2,4343.4,0.4581]
[1760071267869,7.361,4344.7,4343.4,0.4581]
[1760071268163,0.27493147,4345.0,4343.5,0.0230229]
[1760071268351,8.508,4344.9,4344.0,2.30202578]
[1760071268555,2.623,4344.8,4344.0,0.4581]
[1760071268860,2.6573,4344.7,4344.2,2.30191074]
[1760071269666,2.6573,4344.7,4343.3,17.58629084]
[1760071269667,2.6573,4344.7,4343.6,0.4581]
[1760071269964,3.1052,4344.7,4344.0,2.30200685]
[1760071270135,0.1144,4344.5,4344.0,2.30200685]
[1760071270336,0.0944,4344.5,4344.1,2.3019685]
[1760071271653,0.0944,4344.5,4343.8,2.41652313]
[1760071271654,0.43716,4344.5,4343.8,0.1144]
[1760071271856,0.43716,4344.5,4342.9,0.6154]
[1760071271857,2.30182613,4344.4,4342.9,0.6154]
[1760071272057,0.1144,4344.1,4343.4,0.1144]
[1760071272244,3.3,4344.0,4343.5,2.30229077]
[1760071272570,2.395,4343.9,4343.5,2.30229077]
[1760071273167,2.395,4343.9,4343.6,2.30223483]
[1760071274778,2.395,4343.9,4343.4,0.1144]
[1760071274984,2.395,4343.9,4343.8,2.30213177]
[1760071275278,2.395,4343.9,4343.7,2.30217936]
[1760071275779,2.395,4343.9,4343.4,0.1144]
[1760071276172,2.395,4343.9,4343.6,2.30223586]
[1760071276653,2.395,4343.9,4343.7,2.3021844]
[1760071277278,2.395,4343.9,4343.8,2.30213177]
[1760071277781,2.395,4343.9,4343.6,2.30223777]
[1760071277981,2.395,4343.9,4343.7,2.3021741]
[1760071278179,2.395,4343.9,4343.6,2.30222956]
[1760071278354,2.395,4343.9,4343.4,0.1144]
[1760071278562,2.395,4343.9,4343.6,2.30223763]
[1760071278884,2.395,4343.9,4343.7,2.3021782]
[1760071279288,2.395,4343.9,4343.4,0.5725]
[1760071279451,2.395,4343.9,4343.5,2.30224497]
[1760071279653,2.395,4343.9,4343.6,2.30222208]
[1760071280052,2.395,4343.9,4343.7,2.30217024]
[1760071281282,2.395,4343.9,4343.4,0.1144]
[1760071281484,0.1144,4344.1,4343.8,0.4581]
[1760071281654,0.1144,4344.1,4343.4,0.1144]
[1760071281655,3.167,4344.0,4343.9,2.76017877]
[1760071282158,0.002,4344.3,4344.1,2.30197279]
[1760071282159,5.531,4344.2,4344.1,2.30197279]
[1760071282749,5.531,4344.2,4343.8,0.1144]
[1760071282982,5.531,4344.2,4343.9,0.48112078]
[1760071283153,5.531,4344.2,4344.0,0.4581]
[1760071283353,5.531,4344.2,4343.8,0.1144]
[1760071283354,5.531,4344.2,4344.1,0.48111972]
[1760071284368,5.531,4344.2,4344.1,2.78309251]
[1760071284692,5.531,4344.2,4344.1,2.76007279]
[1760071287100,5.531,4344.2,4344.1,0.4581]
[1760071287308,5.531,4344.2,4343.9,2.30204623]
[1760071287608,5.531,4344.2,4344.0,2.30201999]
[1760071287774,5.531,4344.2,4343.8,0.1144]
[1760071287965,5.531,4344.2,4344.1,2.30197279]
[1760071288168,5.531,4344.2,4344.1,2.76967279]
[1760071289191,5.531,4344.2,4344.0,2.30198631]
[1760071289606,5.531,4344.2,4344.0,7.26288211]
[1760071290504,5.531,4344.2,4344.0,7.73058211]
[1760071290700,5.531,4344.2,4344.0,7.26288211]
[1760071291471,5.531,4344.2,4344.0,7.73058211]
[1760071291770,5.531,4344.2,4344.1,2.30197279]
[1760071293099,5.531,4344.2,4344.0,4.9608958]
[1760071293517,6.09574,4344.2,4343.8,0.1144]
[1760071293720,6.09574,4344.2,4343.3,0.001]
[1760071293721,0.5796,4344.1,4343.4,2.41673818]
[1760071293903,0.5796,4344.1,4343.4,5.0752958]
[1760071294206,0.5796,4344.1,4343.5,2.30228566]
[1760071297118,0.5796,4344.1,4343.4,5.0752958]
[1760071297119,0.1144,4344.1,4343.4,5.0752958]
[1760071297277,0.1144,4344.1,4343.3,0.001]
[1760071297278,0.1144,4343.4,4343.3,0.001]
[1760071297479,10.35674378,4343.4,4343.3,0.001]
[1760071297690,10.82194378,4343.4,4343.3,0.001]
[1760071298407,11.45554378,4343.4,4343.3,0.001]
[1760071298723,12.85388431,4343.4,4343.3,0.001]
[1760071298891,14.77388431,4343.4,4343.3,0.001]
[1760071300822,14.30868431,4343.4,4343.3,0.001]
[1760071300988,2.5094,4343.4,4343.3,0.001]
[1760071301188,0.002,4344.3,4343.5,0.001]
[1760071301393,0.6336,4344.0,4343.5,0.001]
[1760071301622,2.30197352,4344.1,4343.5,0.001]
[1760071301823,8.895,4344.2,4343.5,0.001]
[1760071302024,0.6336,4344.0,4343.5,0.001]
[1760071302527,2.52783777,4343.6,4343.5,0.001]
[1760071302726,9.02783777,4343.6,4343.5,0.001]
[1760071302895,9.49303777,4343.6,4343.5,0.001]
[1760071304314,7.1908,4343.6,4343.5,0.001]
[1760071304521,6.9652,4343.6,4343.5,0.001]
[1760071304828,9.26743777,4343.6,4343.5,0.001]
[1760071306010,10.21674155,4343.6,4343.5,0.001]
[1760071306426,12.77034155,4343.6,4343.5,0.001]
[1760071314518,12.86256854,4343.6,4343.5,0.001]
[1760071315247,13.35473405,4343.6,4343.5,0.001]
[1760071315657,12.86256854,4343.6,4343.5,0.001]
[1760071318060,12.86256854,4343.6,4343.1,1e-08]
[1760071318261,4.8560498,4343.2,4343.1,1e-08]
[1760071318427,11.3580498,4343.2,4343.1,1e-08]
[1760071318756,11.88348508,4343.2,4343.1,1e-08]
[1760071321728,12.37598659,4343.2,4343.1,1e-08]
[1760071322540,12.34415237,4343.2,4343.1,1e-08]
[1760071322874,14.17750861,4343.2,4343.1,1e-08]
[1760071323490,19.05075375,4343.2,4343.1,1e-08]
[1760071323994,19.86934391,4343.2,4343.1,1e-08]
[1760071324192,19.05075375,4343.2,4343.1,1e-08]
[1760071324491,19.87185654,4343.2,4343.1,1e-08]
[1760071325071,19.05075375,4343.2,4343.1,1e-08]
[1760071325269,2.93615583,4343.0,4342.9,1e-08]
[1760071325493,22.05289867,4343.0,4342.9,1e-08]
[1760071325796,34.46709867,4343.0,4342.9,1e-08]
[1760071326162,33.85085734,4343.0,4342.9,1e-08]
[1760071326689,33.81959011,4343.0,4342.9,1e-08]
[1760071326992,34.86114959,4343.0,4342.9,1e-08]
[1760071327200,35.68225238,4343.0,4342.9,1e-08]
[1760071327692,2.30303309,4342.1,4341.1,0.01]
[1760071327884,0.8709,4341.2,4341.1,0.01]
[1760071328072,8.8559,4341.2,4341.1,0.01]
[1760071328274,9.2891,4341.2,4341.1,0.01]
[1760071329297,11.59261055,4341.2,4341.1,0.01]
[1760071335164,2.93711055,4341.2,4341.1,0.01]
[1760071335475,12.27031055,4341.2,4341.1,0.01]
[1760071338870,11.83711055,4341.2,4341.1,0.01]
[1760071340172,12.27031055,4341.2,4341.1,0.01]
[1760071341397,11.83711055,4341.2,4341.1,0.01]
[1760071341698,12.27031055,4341.2,4341.1,0.01]
[1760071343701,12.27031055,4341.2,4341.1,0.011]
[1760071345609,0.2305,4341.8,4341.1,4.88424514]
[1760071345812,2.397,4341.2,4341.1,4.88424514]
[1760071346012,2.651,4341.2,4341.1,4.88424514]
[1760071346310,2.651,4341.2,4341.1,7.18780875]
[1760071346604,2.651,4341.2,4341.1,7.61800875]
[1760071348196,2.651,4341.2,4341.1,7.73240875]
[1760071348398,2.651,4341.2,4341.1,8.73601578]
[1760071349213,2.348,4341.2,4341.1,8.73601578]
[1760071355633,2.396,4341.6,4341.5,2.30335137]
[1760071355944,2.396,4341.6,4341.5,7.73699651]
[1760071356646,2.396,4341.6,4341.5,2.86375137]
[1760071356849,2.396,4341.6,4341.5,3.86779543]
[1760071358645,0.1144,4342.3,4341.5,1.56444406]
[1760071358845,0.109,4342.2,4342.1,2.30301055]
[1760071359142,2.396,4342.6,4342.5,2.30280228]
[1760071359436,4.512,4342.6,4342.5,7.62204742]
[1760071361459,4.512,4342.6,4342.5,6.88538024]
[1760071361757,4.512,4342.6,4342.5,4.58257796]
[1760071363164,4.512,4342.6,4342.5,4.13657796]
[1760071364966,6.46,4342.9,4342.5,5.2711233]
[1760071365150,6.46,4342.9,4342.6,0.446]
[1760071365351,6.46,4342.9,4342.7,0.446]
[1760071366931,6.46,4342.9,4342.8,0.4432]
[1760071373032,6.46,4342.9,4342.8,4.57977796]
[1760071374143,0.002,4343.0,4342.8,6.88243983]
[1760071374378,0.002,4343.0,4342.9,3.20378665]
[1760071374551,0.002,4343.0,4342.9,3.22681273]
[1760071374873,2.014,4343.0,4342.9,3.34121273]
[1760071375042,2.014,4343.0,4342.9,3.31818665]
[1760071375241,2.014,4343.0,4342.9,3.4334038]
[1760071375740,2.014,4343.0,4342.9,3.41037772]
[1760071384681,0.002,4343.0,4342.9,3.41037772]
[1760071385782,0.002,4343.0,4342.9,3.4334038]
[1760071386791,6.06017059,4343.5,4343.4,2.30234378]
[1760071386999,6.06017059,4343.5,4343.4,6.89939851]
[1760071387173,6.06017059,4343.5,4343.4,7.32949851]
[1760071387569,0.012,4343.9,4343.4,5.02715473]
[1760071387867,0.012,4343.9,4343.8,6.43870973]
[1760071388053,2.548,4343.9,4343.8,6.43870973]
[1760071388253,2.548,4343.9,4343.8,6.86880973]
[1760071388881,0.012,4343.9,4343.8,6.86880973]
[1760071389894,0.012,4343.9,4343.8,7.90031448]
[1760071391753,0.012,4343.9,4343.8,8.59159296]
[1760071393278,0.012,4343.9,4343.8,10.51159296]
[1760071393898,0.002,4344.3,4344.2,2.3019198]
[1760071394099,0.002,4344.3,4344.2,8.49591695]
[1760071394306,0.002,4344.3,4344.2,10.14918607]
[1760071395168,0.002,4345.0,4344.4,2.30181382]
[1760071395365,0.002,4345.0,4344.4,10.72081382]
[1760071395588,0.002,4345.0,4344.7,2.30165488]
[1760071395889,0.002,4345.0,4344.7,8.35823284]
[1760071396098,0.002,4345.0,4344.7,9.36071064]
[1760071396895,0.002,4345.0,4344.7,9.45285541]
[1760071402171,0.002,4345.0,4344.7,2.58452257]
[1760071402399,2.046,4344.9,4344.7,0.09214477]
[1760071402607,3.39740191,4344.8,4344.7,0.09214477]
[1760071402770,5.31740191,4344.8,4344.7,0.09214477]
[1760071402968,2.30200252,4344.1,4343.1,4.13657796]
[1760071403288,8.891,4344.0,4343.4,4.13657796]
[1760071404074,8.891,4344.0,4343.4,6.43891243]
[1760071404279,8.891,4344.0,4343.4,6.43892066]
[1760071404715,8.891,4344.0,4343.4,6.86902066]
[1760071405834,6.497,4343.9,4343.4,4.56667796]
[1760071406031,6.497,4343.9,4343.4,4.13657796]
[1760071406032,8.891,4343.9,4343.4,4.13657796]
[1760071406334,8.891,4343.9,4343.5,2.73239077]
[1760071406694,8.891,4343.9,4343.6,0.4301]
[1760071407528,0.002,4344.8,4343.7,4.57607796]
[1760071407699,0.002,4344.8,4344.7,4.13657796]
[1760071408025,4.004,4344.8,4344.7,6.46124938]
[1760071408220,4.004,4344.8,4344.7,6.87773284]
[1760071408423,4.004,4344.8,4344.7,4.57607796]
[1760071408791,4.004,4344.8,4344.7,6.87773284]
[1760071409991,0.002,4344.8,4344.7,6.87773284]
[1760071410194,0.002,4344.8,4344.7,7.79568079]
[1760071410403,0.002,4344.8,4344.7,5.49402591]
[1760071410607,0.002,4344.8,4344.7,4.57607796]
[1760071410794,0.002,4344.8,4343.6,0.91723332]
[1760071410795,0.002,4344.8,4343.9,0.4395]
[1760071411009,0.002,4344.8,4344.4,2.30179525]
[1760071411226,0.002,4344.8,4344.3,4.13657796]
[1760071411428,0.002,4344.8,4344.4,2.30180153]
[1760071411616,0.002,4344.8,4344.5,2.30174624]
[1760071412134,0.002,4344.8,4344.3,4.13657796]
[1760071412432,0.4323,4344.8,4344.2,0.1144]
[1760071412617,0.002,4344.8,4344.2,0.1144]
[1760071412932,0.002,4344.8,4344.3,4.13657796]
[1760071413238,0.002,4344.8,4344.3,4.57607796]
[1760071413448,0.002,4344.8,4344.4,0.4395]
[1760071414647,0.002,4344.8,4344.7,2.30165488]
[1760071414949,0.775,4344.8,4344.6,6.43827958]
[1760071415266,0.775,4344.8,4344.6,4.13657796]
[1760071415757,1.10454,4344.8,4343.9,2.30207299]
[1760071415940,0.4303,4344.7,4344.1,0.1144]
[1760071416338,1.21894,4344.8,4344.1,2.41636502]
[1760071416927,1.21894,4344.8,4344.1,0.1144]
[1760071417857,1.21894,4344.8,4344.1,2.41635179]
[1760071418015,1.21894,4344.8,4344.2,2.3019158]
[1760071418639,1.21894,4344.8,4344.1,2.85586997]
[1760071418846,1.21894,4344.8,4344.1,0.5539]
[1760071419044,1.21894,4344.8,4344.1,0.1144]
[1760071419554,1.21894,4344.8,4344.1,2.41636346]
[1760071420050,1.21894,4344.8,4344.2,2.30191501]
[1760071420238,0.8894,4344.8,4344.2,2.3019198]
[1760071423565,0.8894,4344.8,4344.1,2.85587204]
[1760071424369,0.8894,4344.8,4344.2,2.301918]
[1760071425242,0.8894,4344.8,4344.5,2.30172911]
[1760071425442,0.8894,4344.8,4344.6,0.4395]
[1760071425777,0.8894,4344.8,4344.7,0.4395]
[1760071426266,0.8894,4344.8,4344.4,0.4392]
[1760071427142,0.8894,4344.8,4344.2,2.30187747]
[1760071427344,0.8894,4344.8,4344.1,0.1154]
[1760071427666,1.26219,4344.8,4344.1,2.41737218]
[1760071427867,1.26219,4344.8,4344.1,0.1154]
[1760071428042,1.69469,4344.8,4344.1,2.41735982]
[1760071428246,1.69469,4344.8,4344.2,2.30190964]
[1760071428448,1.26219,4344.8,4344.3,2.30185865]
[1760071428752,0.8894,4344.8,4344.4,2.74100319]
[1760071429150,0.8894,4344.8,4344.5,0.4392]
[1760071429449,0.8894,4344.8,4344.6,2.30169287]
[1760071429644,0.8894,4344.8,4344.7,0.4392]
[1760071429849,0.8894,4344.8,4344.7,7.60635703]
[1760071429850,0.775,4344.8,4344.7,7.60635703]
[1760071431653,0.775,4344.8,4344.7,2.74085488]
[1760071433656,0.775,4344.8,4344.7,0.4392]
[1760071434080,0.775,4344.8,4344.6,2.30170315]
[1760071434481,0.775,4344.8,4344.6,2.74090315]
[1760071434882,0.775,4344.8,4344.7,2.30165488]
[1760071435080,0.775,4344.8,4344.7,2.74085488]
[1760071435390,0.002,4344.8,4344.7,2.74085488]
[1760071436473,0.002,4344.8,4344.4,5.30470215]
[1760071436667,0.002,4344.8,4344.3,2.83317811]
[1760071436873,0.002,4344.8,4344.3,0.09215942]
[1760071437081,2.30172872,4344.6,4344.3,0.09215942]
[1760071437299,0.464,4344.5,4344.3,0.09215942]
[1760071437500,2.30181382,4344.4,4344.3,0.09215942]
[1760071437663,2.30170786,4344.6,4344.1,0.001]
[1760071437867,2.97701194,4344.5,4344.1,0.001]
[1760071438173,5.27877681,4344.5,4344.1,0.001]
[1760071438499,6.496,4344.4,4344.1,0.001]
[1760071438697,6.96,4344.4,4344.1,0.001]
[1760071439078,0.464,4344.3,4344.1,0.001]
[1760071439278,0.29086587,4344.2,4344.1,0.001]
[1760071439613,0.75486587,4344.2,4344.1,0.001]
[1760071442583,3.05678567,4344.2,4344.1,0.001]
[1760071442970,3.69038567,4344.2,4344.1,0.001]
[1760071443492,3.65792706,4344.2,4344.1,0.001]
[1760071445820,6.496,4344.4,4344.1,0.001]
[1760071445979,9.0064,4344.3,4344.1,0.001]
[1760071446177,6.497,4344.2,4344.1,7.16847494]
[1760071446970,6.497,4344.2,4344.1,7.63577494]
[1760071447416,6.497,4344.2,4344.1,8.64099932]
[1760071447901,6.497,4344.2,4344.1,1.00622438]
[1760071448102,6.497,4344.2,4344.1,0.001]
[1760071448308,6.497,4344.2,4344.1,2.77027279]
[1760071448523,6.497,4344.2,4344.1,2.30297279]
[1760071450709,6.497,4344.2,4344.1,0.001]
[1760071454853,0.1144,4344.5,4344.4,2.30181382]
[1760071455038,2.5114,4344.8,4344.4,0.99375358]
[1760071455216,0.225,4344.7,4344.6,2.30169363]
[1760071455734,0.225,4344.7,4344.5,2.30175086]
[1760071455927,0.225,4344.7,4344.6,2.30170786]
[1760071456262,0.225,4344.7,4344.6,2.76900786]
[1760071456428,0.225,4344.7,4344.6,8.254708]
[1760071456629,0.225,4344.7,4344.6,8.369108]
[1760071457655,0.225,4344.7,4344.6,3.50360585]
[1760071457838,0.225,4344.7,4344.6,0.1144]
[1760071458151,0.225,4344.7,4344.1,0.001]
[1760071458152,0.225,4344.7,4344.3,2.41625836]
[1760071458557,0.225,4344.7,4344.4,2.30180116]
[1760071459446,0.225,4344.7,4344.5,2.30174405]
[1760071460261,0.225,4344.7,4344.4,2.3018059]
[1760071460430,0.225,4344.7,4344.3,2.41626229]
[1760071460626,0.225,4344.7,4344.4,2.3017896]
[1760071460958,0.225,4344.7,4344.5,2.30175672]
[1760071462026,0.225,4344.7,4344.3,0.1144]
[1760071462252,0.225,4344.7,4344.3,2.41621718]
[1760071462651,0.225,4344.7,4344.5,2.30175747]
[1760071463165,0.225,4344.7,4344.5,0.4673]
[1760071463530,0.225,4344.7,4344.6,2.30170786]
[1760071463732,0.002,4344.8,4344.7,2.30165488]
[1760071464032,0.002,4344.8,4344.7,2.79197142]
[1760071464644,0.099,4344.8,4344.7,2.76895488]
[1760071466070,0.099,4344.8,4344.1,0.001]
[1760071466253,0.002,4344.7,4344.1,0.001]
[1760071466566,0.002,4344.7,4344.2,1.19268022]
[1760071466762,0.002,4344.7,4344.6,2.30170786]
[1760071467270,0.002,4344.7,4344.6,2.73760786]
[1760071467769,0.002,4344.7,4344.6,2.30170786]
[1760071468440,0.002,4344.7,4344.6,2.73760786]
[1760071469699,0.002,4344.7,4344.1,0.001]
[1760071469700,0.6336,4344.6,4344.1,0.001]
[1760071469838,2.30186846,4344.3,4344.1,0.001]
[1760071470037,1.3074672,4344.5,4344.1,0.001]
[1760071470038,5.3295198,4344.2,4344.1,0.001]
[1760071470238,5.7889198,4344.2,4344.1,0.001]
[1760071471651,12.2849198,4344.2,4344.1,0.001]
[1760071476806,9.983,4344.2,4344.1,0.001]
[1760071477099,11.11204672,4344.2,4344.1,0.001]
[1760071477301,13.41396652,4344.2,4344.1,0.001]
[1760071478003,1.12904672,4344.2,4344.1,0.001]
[1760071478179,0.002,4344.7,4344.1,0.001]
[1760071478380,0.002,4344.7,4344.1,2.30297039]
[1760071478687,0.1144,4344.4,4344.2,2.30191519]
[1760071478891,0.1144,4344.4,4344.1,0.001]
[1760071478892,0.5738,4344.4,4344.1,0.001]
[1760071479087,0.4594,4344.3,4344.1,0.001]
[1760071479294,6.314,4344.2,4344.1,0.001]
[1760071483478,6.314,4344.2,4344.1,2.30297279]
[1760071483770,6.314,4344.2,4344.1,0.001]
[1760071492413,6.314,4344.2,4344.1,6.43732907]
[1760071492618,0.002,4344.7,4344.2,2.3019198]
[1760071492776,0.002,4344.7,4344.6,4.13435628]
[1760071493114,0.026,4344.7,4344.6,4.13435628]
[1760071493284,0.026,4344.7,4344.6,6.43606414]
[1760071494191,0.026,4344.7,4344.6,6.86426414]
[1760071494695,0.026,4344.7,4344.6,6.43606414]
[1760071495218,0.002,4344.7,4344.6,6.43606414]
[1760071495519,2.909,4344.7,4344.6,6.43606414]
[1760071496287,2.909,4344.7,4344.6,6.86426414]
[1760071499908,0.002,4344.7,4344.6,11.91522564]
[1760071500108,0.002,4344.7,4344.6,12.02962564]
[1760071501438,0.002,4344.7,4344.6,7.92816936]
[1760071501645,0.002,4344.7,4344.6,7.46706936]
[1760071501814,0.002,4344.7,4344.6,7.92816936]
[1760071502453,0.00829545,4345.4,4344.9,2.30150168]
[1760071502662,0.00829545,4345.4,4345.0,2.30149084]
[1760071503014,0.00829545,4345.4,4345.0,2.76259597]
[1760071503213,0.00829545,4345.4,4345.1,2.76252817]
[1760071503409,0.00829545,4345.4,4345.2,6.43574631]
[1760071503727,0.00829545,4345.4,4345.2,4.59545628]
[1760071504028,0.00829545,4345.4,4345.2,6.43574001]
[1760071504232,0.00829545,4345.4,4345.3,2.30133707]
[1760071504412,0.00829545,4345.4,4345.2,4.59545628]
[1760071504810,0.00829545,4345.4,4345.2,4.13435628]
[1760071505447,0.00829545,4345.4,4344.3,2.30185998]
[1760071505630,0.4311,4345.3,4344.7,2.30165082]
[1760071505839,0.4311,4345.3,4344.5,4.13435628]
[1760071506211,0.4311,4345.3,4344.6,2.30168692]
[1760071507324,0.4311,4345.3,4344.5,4.13435628]
[1760071507470,2.73249242,4345.2,4344.3,2.30183993]
[1760071508169,2.30165179,4344.8,4343.7,0.001]
[1760071508375,5.882,4344.7,4344.0,2.30201862]
[1760071508578,6.3131,4344.7,4344.0,2.30201862]
[1760071508961,6.3131,4344.7,4343.9,4.13435628]
[1760071509167,0.6336,4344.6,4343.7,0.001]
[1760071509469,2.9355198,4344.2,4343.7,0.001]
[1760071509651,3.45925534,4344.2,4343.7,0.001]
[1760071509855,3.89035534,4344.2,4343.7,0.001]
[1760071512468,1.0647,4344.2,4343.7,0.001]
[1760071512700,9.5226,4344.2,4343.9,4.13435628]
[1760071513192,8.889,4344.2,4344.1,2.30297279]
[1760071513383,8.889,4344.2,4344.1,2.76407279]
[1760071514414,8.889,4344.2,4344.1,0.4621]
[1760071514566,8.889,4344.2,4344.1,0.001]
[1760071514902,10.85404,4344.2,4344.1,0.001]
[1760071515462,13.1559598,4344.2,4344.1,0.001]
[1760071519887,15.0759598,4344.2,4344.1,0.001]
[1760071523401,15.5678173,4344.2,4344.1,0.001]
[1760071523609,6.27918551,4344.2,4344.1,0.001]
[1760071523898,24.6599598,4344.2,4344.1,0.001]
[1760071527300,6.1869598,4344.2,4344.1,0.001]
[1760071527602,24.6609598,4344.2,4344.1,0.001]
[1760071532598,25.15261622,4344.2,4344.1,0.001]